[Event "Late-Titled-Tuesday-Blitz-August-29-2023"]
[Site "Chess.com"]
[Date "2023.08.29"]
[Round "4"]
[White "maciek_92"]
[Black "vladislavkovalev"]
[Result "0-1"]
[WhiteElo "2735"]
[BlackElo "2919"]
[TimeControl "180+1"]
[EndTime "14:38:32 PDT"]
[Termination "vladislavkovalev won by resignation"]

1. Nf3 {[%clk 0:03:00.9]} 1... Nf6 {[%clk 0:02:58.9]} 2. b3 {[%clk 0:03:01.1]}
2... e6 {[%clk 0:02:54.4]} 3. Bb2 {[%clk 0:03:01.2]} 3... d5 {[%clk 0:02:54.3]}
4. g3 {[%clk 0:03:01.9]} 4... b6 {[%clk 0:02:54.5]} 5. Bg2 {[%clk 0:03:02.4]}
5... Bb7 {[%clk 0:02:55.1]} 6. O-O {[%clk 0:03:03.1]} 6... Be7 {[%clk
0:02:55.6]} 7. e3 {[%clk 0:03:03.8]} 7... O-O {[%clk 0:02:55.7]} 8. Qe2 {[%clk
0:03:04.2]} 8... c5 {[%clk 0:02:55.8]} 9. c4 {[%clk 0:03:03.1]} 9... dxc4 {[%clk
0:02:56.7]} 10. bxc4 {[%clk 0:03:03.1]} 10... Nc6 {[%clk 0:02:55.9]} 11. Rd1
{[%clk 0:03:02.2]} 11... Qc7 {[%clk 0:02:55.7]} 12. Nc3 {[%clk 0:02:50.8]} 12...
a6 {[%clk 0:02:55.8]} 13. Rac1 {[%clk 0:02:43.9]} 13... Rac8 {[%clk 0:02:53.2]}
14. d4 {[%clk 0:02:44.1]} 14... cxd4 {[%clk 0:02:53.3]} 15. exd4 {[%clk
0:02:45]} 15... Na5 {[%clk 0:02:52]} 16. c5 {[%clk 0:02:23.9]} 16... bxc5 {[%clk
0:02:40.3]} 17. dxc5 {[%clk 0:02:24.8]} 17... Rfd8 {[%clk 0:01:55.7]} 18. Re1
{[%clk 0:02:13.7]} 18... Qxc5 {[%clk 0:01:46.8]} 19. Ne4 {[%clk 0:02:13.1]}
19... Qb5 {[%clk 0:01:43.9]} 20. Rxc8 {[%clk 0:01:51.4]} 20... Rxc8 {[%clk
0:01:38]} 21. Nxf6+ {[%clk 0:01:49.8]} 21... Bxf6 {[%clk 0:01:38.1]} 22. Bxf6
{[%clk 0:01:47.7]} 22... Qxe2 {[%clk 0:01:33.2]} 23. Rxe2 {[%clk 0:01:48.2]}
23... gxf6 {[%clk 0:01:33.3]} 24. Ne1 {[%clk 0:01:15.5]} 24... Rc3 {[%clk
0:01:20]} 25. Nc2 {[%clk 0:01:01.3]} 25... Bxg2 {[%clk 0:01:17.7]} 26. Kxg2
{[%clk 0:01:01.4]} 26... Nc6 {[%clk 0:01:15.3]} 27. h4 {[%clk 0:00:36.1]} 27...
f5 {[%clk 0:01:14.5]} 28. Ne3 {[%clk 0:00:25.5]} 28... a5 {[%clk 0:01:12.3]} 29.
Rd2 {[%clk 0:00:22.5]} 29... Ne5 {[%clk 0:01:10.7]} 30. Rb2 {[%clk 0:00:16.2]}
30... Nd3 {[%clk 0:01:01.1]} 31. Rb7 {[%clk 0:00:03.6]} 31... Ra3 {[%clk
0:00:54.1]} 32. Rb3 {[%clk 0:00:03.9]} 32... Rxb3 {[%clk 0:00:54]} 33. axb3
{[%clk 0:00:04.8]} 33... Nc5 {[%clk 0:00:54.3]} 34. Nc4 {[%clk 0:00:05.3]} 34...
Nxb3 {[%clk 0:00:54.6]} 35. Kf3 {[%clk 0:00:06.1]} 35... Kg7 {[%clk 0:00:51.8]}
36. Ke3 {[%clk 0:00:07]} 36... Kf6 {[%clk 0:00:51.8]} 37. Kd3 {[%clk 0:00:07.7]}
37... a4 {[%clk 0:00:52.2]} 38. f3 {[%clk 0:00:06.5]} 38... h5 {[%clk
0:00:48.7]} 39. Kc3 {[%clk 0:00:06.8]} 39... e5 {[%clk 0:00:36.1]} 40. Nb6
{[%clk 0:00:05.1]} 40... Nd4 {[%clk 0:00:35.6]} 41. f4 {[%clk 0:00:04.6]} 41...
Ne2+ {[%clk 0:00:34.6]} 42. Kd3 {[%clk 0:00:04.4]} 42... a3 {[%clk 0:00:20.6]}
43. Nd5+ {[%clk 0:00:02.6]} 43... Ke6 {[%clk 0:00:20.1]} 44. Nb4 {[%clk
0:00:03.5]} 44... Nxg3 {[%clk 0:00:19.6]} 45. fxe5 {[%clk 0:00:04.4]} 45... Kxe5
{[%clk 0:00:19.8]} 0-1

[Event "Late-Titled-Tuesday-Blitz-August-29-2023"]
[Site "Chess.com"]
[Date "2023.08.29"]
[Round "4"]
[White "vladgoncharov"]
[Black "andriipalchuk"]
[Result "0-1"]
[WhiteElo "2519"]
[BlackElo "2707"]
[TimeControl "180+1"]
[EndTime "14:38:32 PDT"]
[Termination "andriipalchuk won by resignation"]

1. d4 {[%clk 0:03:00.9]} 1... d5 {[%clk 0:02:56.9]} 2. c4 {[%clk 0:03:00.8]}
2... e6 {[%clk 0:02:57.1]} 3. Nc3 {[%clk 0:03:00.5]} 3... c5 {[%clk 0:02:57.7]}
4. cxd5 {[%clk 0:02:57.9]} 4... exd5 {[%clk 0:02:58.6]} 5. Nf3 {[%clk
0:02:57.3]} 5... Nc6 {[%clk 0:02:58.2]} 6. g3 {[%clk 0:02:57.6]} 6... Nf6 {[%clk
0:02:57.9]} 7. Bg2 {[%clk 0:02:57.4]} 7... Be7 {[%clk 0:02:58.5]} 8. O-O {[%clk
0:02:57.4]} 8... O-O {[%clk 0:02:57.6]} 9. dxc5 {[%clk 0:02:56.9]} 9... Bxc5
{[%clk 0:02:57.2]} 10. Bg5 {[%clk 0:02:57.4]} 10... d4 {[%clk 0:02:53.5]} 11.
Na4 {[%clk 0:02:49.6]} 11... Be7 {[%clk 0:02:50.4]} 12. Rc1 {[%clk 0:02:48.5]}
12... h6 {[%clk 0:02:18.6]} 13. Bf4 {[%clk 0:02:41]} 13... Be6 {[%clk
0:02:00.5]} 14. Ne5 {[%clk 0:02:29.3]} 14... Nxe5 {[%clk 0:01:31.8]} 15. Bxe5
{[%clk 0:02:28.6]} 15... b5 {[%clk 0:01:32.3]} 16. Nc5 {[%clk 0:02:09]} 16...
Bxc5 {[%clk 0:01:19.6]} 17. Rxc5 {[%clk 0:02:05.5]} 17... Nd7 {[%clk 0:01:19.6]}
18. Rxb5 {[%clk 0:02:02.3]} 18... a6 {[%clk 0:01:19.1]} 19. Bxa8 {[%clk
0:01:00.7]} 19... axb5 {[%clk 0:01:00.4]} 20. Bd6 {[%clk 0:00:54.7]} 20... Qxa8
{[%clk 0:00:58.9]} 21. Bxf8 {[%clk 0:00:54]} 21... Bh3 {[%clk 0:00:58.6]} 22. f3
{[%clk 0:00:54.5]} 22... Bxf1 {[%clk 0:00:58.6]} 23. Qxd4 {[%clk 0:00:55.2]}
23... Nxf8 {[%clk 0:00:54.4]} 24. Kxf1 {[%clk 0:00:54.9]} 24... Qxa2 {[%clk
0:00:55]} 25. Kf2 {[%clk 0:00:54.4]} 25... Ne6 {[%clk 0:00:54]} 26. Qe5 {[%clk
0:00:54.5]} 26... Qc4 {[%clk 0:00:53]} 27. Kf1 {[%clk 0:00:54.5]} 27... g6
{[%clk 0:00:40.5]} 28. h4 {[%clk 0:00:53.3]} 28... h5 {[%clk 0:00:40.7]} 29. Kg2
{[%clk 0:00:50.6]} 29... Qc5 {[%clk 0:00:36]} 30. Qe4 {[%clk 0:00:43.8]} 30...
Kg7 {[%clk 0:00:35.1]} 31. b4 {[%clk 0:00:37.4]} 31... Qd4 {[%clk 0:00:31.1]}
32. Qb1 {[%clk 0:00:37.2]} 32... Qd2 {[%clk 0:00:25.3]} 33. Qe4 {[%clk
0:00:33.3]} 33... Nd4 {[%clk 0:00:18]} 34. Qe5+ {[%clk 0:00:33.3]} 34... Kh7
{[%clk 0:00:18]} 35. Kf2 {[%clk 0:00:24.7]} 35... Qxb4 {[%clk 0:00:17.1]} 36.
Qf6 {[%clk 0:00:25]} 36... Kg8 {[%clk 0:00:13.9]} 37. Qd8+ {[%clk 0:00:24.9]}
37... Kg7 {[%clk 0:00:14.5]} 38. Qd5 {[%clk 0:00:24.1]} 38... Ne6 {[%clk
0:00:13.7]} 39. Qe5+ {[%clk 0:00:24.1]} 39... Kh7 {[%clk 0:00:14.3]} 40. Qf6
{[%clk 0:00:23.7]} 40... Qd4+ {[%clk 0:00:13.4]} 41. Qxd4 {[%clk 0:00:24.4]}
41... Nxd4 {[%clk 0:00:14.3]} 42. Ke3 {[%clk 0:00:24.9]} 42... Nf5+ {[%clk
0:00:14.9]} 43. Kf4 {[%clk 0:00:24.6]} 43... b4 {[%clk 0:00:15.5]} 44. g4 {[%clk
0:00:24.1]} 44... hxg4 {[%clk 0:00:15.4]} 45. fxg4 {[%clk 0:00:24.1]} 45... Nxh4
{[%clk 0:00:16.3]} 46. Ke4 {[%clk 0:00:24.3]} 46... Kh6 {[%clk 0:00:16.3]} 47.
Kd4 {[%clk 0:00:24.5]} 47... Kg5 {[%clk 0:00:17.2]} 48. Kc4 {[%clk 0:00:25.2]}
48... Kxg4 {[%clk 0:00:17.8]} 49. Kxb4 {[%clk 0:00:26.1]} 49... Kf4 {[%clk
0:00:18.6]} 50. Kc3 {[%clk 0:00:26.8]} 50... Ke3 {[%clk 0:00:19.3]} 51. Kc4
{[%clk 0:00:26.9]} 51... Kxe2 {[%clk 0:00:19.9]} 52. Kd5 {[%clk 0:00:27.8]}
52... g5 {[%clk 0:00:20.5]} 53. Ke5 {[%clk 0:00:28.6]} 53... Kf3 {[%clk
0:00:19.7]} 54. Kf6 {[%clk 0:00:28]} 54... g4 {[%clk 0:00:20.3]} 55. Kg5 {[%clk
0:00:28.7]} 55... g3 {[%clk 0:00:21.2]} 56. Kxh4 {[%clk 0:00:29.3]} 56... g2
{[%clk 0:00:22.1]} 57. Kg5 {[%clk 0:00:30]} 57... g1=Q+ {[%clk 0:00:23]} 58. Kf5
{[%clk 0:00:30.6]} 58... Qg4+ {[%clk 0:00:23]} 59. Kf6 {[%clk 0:00:31.5]} 59...
Qf4+ {[%clk 0:00:23.2]} 0-1

[Event "Late-Titled-Tuesday-Blitz-August-29-2023"]
[Site "Chess.com"]
[Date "2023.08.29"]
[Round "4"]
[White "XDPS"]
[Black "BillieKimbah"]
[Result "0-1"]
[WhiteElo "2872"]
[BlackElo "3048"]
[TimeControl "180+1"]
[EndTime "14:38:33 PDT"]
[Termination "BillieKimbah won by resignation"]

1. e4 {[%clk 0:03:00.9]} 1... e5 {[%clk 0:02:59.5]} 2. Nf3 {[%clk 0:03:01.1]}
2... Nc6 {[%clk 0:02:59.9]} 3. Bb5 {[%clk 0:03:01.8]} 3... a6 {[%clk 0:03:00]}
4. Ba4 {[%clk 0:03:02.3]} 4... Nf6 {[%clk 0:03:00.2]} 5. Nc3 {[%clk 0:03:03]}
5... Bb4 {[%clk 0:02:59.1]} 6. O-O {[%clk 0:03:01.5]} 6... Bxc3 {[%clk
0:02:50.9]} 7. bxc3 {[%clk 0:02:57.1]} 7... d6 {[%clk 0:02:50.7]} 8. d3 {[%clk
0:02:54.1]} 8... h6 {[%clk 0:02:49.7]} 9. Nd2 {[%clk 0:02:53.2]} 9... b5 {[%clk
0:02:42]} 10. Bb3 {[%clk 0:02:53.1]} 10... O-O {[%clk 0:02:42.3]} 11. a4 {[%clk
0:02:49.5]} 11... Be6 {[%clk 0:02:33.1]} 12. c4 {[%clk 0:02:40.2]} 12... Na5
{[%clk 0:02:23.6]} 13. cxb5 {[%clk 0:01:54.7]} 13... Nxb3 {[%clk 0:02:22.4]} 14.
cxb3 {[%clk 0:01:39.9]} 14... axb5 {[%clk 0:02:22.5]} 15. Bb2 {[%clk 0:01:27.4]}
15... Qb8 {[%clk 0:01:52.9]} 16. Bc3 {[%clk 0:01:24.3]} 16... Nd7 {[%clk
0:01:49.3]} 17. d4 {[%clk 0:01:18.9]} 17... exd4 {[%clk 0:01:38.3]} 18. Bxd4
{[%clk 0:01:19.8]} 18... c5 {[%clk 0:01:38.2]} 19. Bc3 {[%clk 0:01:18.5]} 19...
Qb7 {[%clk 0:01:33.6]} 20. Re1 {[%clk 0:01:13.9]} 20... Ne5 {[%clk 0:01:25.7]}
21. Bxe5 {[%clk 0:00:41]} 21... dxe5 {[%clk 0:01:26.6]} 22. Qc2 {[%clk
0:00:41.5]} 22... Rfc8 {[%clk 0:01:21]} 23. h3 {[%clk 0:00:39.8]} 23... f6
{[%clk 0:01:07.6]} 24. Qc3 {[%clk 0:00:37.5]} 24... b4 {[%clk 0:00:53.8]} 25.
Qc2 {[%clk 0:00:37.4]} 25... Rd8 {[%clk 0:00:53.9]} 26. Nf1 {[%clk 0:00:32.4]}
26... Rd4 {[%clk 0:00:47.2]} 27. Qxc5 {[%clk 0:00:28.5]} 27... Bxb3 {[%clk
0:00:46.9]} 28. Ne3 {[%clk 0:00:20.1]} 28... Be6 {[%clk 0:00:42.9]} 29. Reb1
{[%clk 0:00:11.3]} 29... b3 {[%clk 0:00:42.9]} 30. a5 {[%clk 0:00:10.9]} 30...
Rc8 {[%clk 0:00:20.1]} 31. Qa3 {[%clk 0:00:07.8]} 31... Rxe4 {[%clk 0:00:14.9]}
32. a6 {[%clk 0:00:07.9]} 32... Qa7 {[%clk 0:00:15.4]} 33. Rxb3 {[%clk
0:00:08.4]} 33... Bxb3 {[%clk 0:00:13.7]} 34. Qxb3+ {[%clk 0:00:09.3]} 34... Kh8
{[%clk 0:00:13.9]} 35. Qb7 {[%clk 0:00:08.4]} 35... Qa8 {[%clk 0:00:11]} 36. Rd1
{[%clk 0:00:06.2]} 36... Rd4 {[%clk 0:00:09]} 37. Rb1 {[%clk 0:00:06.2]} 37...
Qxb7 {[%clk 0:00:08.6]} 38. axb7 {[%clk 0:00:06.7]} 38... Rb8 {[%clk 0:00:08.7]}
39. Nf5 {[%clk 0:00:03.2]} 39... Rd7 {[%clk 0:00:08.6]} 40. g4 {[%clk
0:00:02.8]} 40... Rdxb7 {[%clk 0:00:07.8]} 41. Rc1 {[%clk 0:00:03.2]} 41... Rb1
{[%clk 0:00:07.8]} 0-1

[Event "Late-Titled-Tuesday-Blitz-August-29-2023"]
[Site "Chess.com"]
[Date "2023.08.29"]
[Round "4"]
[White "GMMikhailKazakov"]
[Black "laskakid"]
[Result "0-1"]
[WhiteElo "2351"]
[BlackElo "2181"]
[TimeControl "180+1"]
[EndTime "14:38:33 PDT"]
[Termination "laskakid won on time"]

1. d4 {[%clk 0:02:58.4]} 1... d5 {[%clk 0:02:59.8]} 2. c4 {[%clk 0:02:58.6]}
2... c6 {[%clk 0:03:00.2]} 3. Nc3 {[%clk 0:02:58.5]} 3... Nf6 {[%clk 0:03:00.3]}
4. Nf3 {[%clk 0:02:58.4]} 4... dxc4 {[%clk 0:03:00.6]} 5. e4 {[%clk 0:02:55.3]}
5... b5 {[%clk 0:02:59.4]} 6. Qc2 {[%clk 0:02:54.1]} 6... e6 {[%clk 0:02:57.1]}
7. Be2 {[%clk 0:02:50.2]} 7... Bb7 {[%clk 0:02:54.3]} 8. O-O {[%clk 0:02:29.4]}
8... Be7 {[%clk 0:02:53.9]} 9. Rb1 {[%clk 0:02:29.1]} 9... O-O {[%clk
0:02:51.1]} 10. b3 {[%clk 0:02:28.9]} 10... cxb3 {[%clk 0:02:49.3]} 11. Rxb3
{[%clk 0:02:28.6]} 11... Nbd7 {[%clk 0:02:42.7]} 12. e5 {[%clk 0:02:24.2]} 12...
Nd5 {[%clk 0:02:39.9]} 13. Ne4 {[%clk 0:02:24]} 13... Rc8 {[%clk 0:02:29.5]} 14.
Nfg5 {[%clk 0:02:21.3]} 14... h6 {[%clk 0:02:20.6]} 15. Nh7 {[%clk 0:01:16.3]}
15... Re8 {[%clk 0:02:20.4]} 16. Rh3 {[%clk 0:01:12.7]} 16... c5 {[%clk
0:02:02]} 17. Bxh6 {[%clk 0:00:57.8]} 17... cxd4 {[%clk 0:01:58]} 18. Qd2 {[%clk
0:00:48.5]} 18... Nc3 {[%clk 0:01:30.5]} 19. Bxg7 {[%clk 0:00:22.6]} 19... Nxe2+
{[%clk 0:00:46.1]} 20. Qxe2 {[%clk 0:00:21]} 20... Bxe4 {[%clk 0:00:32.9]} 21.
Qxe4 {[%clk 0:00:20.1]} 21... Kxg7 {[%clk 0:00:21]} 22. Qg4+ {[%clk 0:00:19.7]}
22... Bg5 {[%clk 0:00:20.2]} 23. Nxg5 {[%clk 0:00:16.6]} 23... f5 {[%clk
0:00:09.9]} 24. Qh5 {[%clk 0:00:11.3]} 24... Nxe5 {[%clk 0:00:03.2]} 25. Qh7+
{[%clk 0:00:10.9]} 25... Kf6 {[%clk 0:00:03.2]} 26. Rh6+ {[%clk 0:00:08.3]}
26... Kxg5 {[%clk 0:00:02.6]} 27. Qg7+ {[%clk 0:00:08.9]} 27... Kf4 {[%clk
0:00:02.6]} 28. Qg3+ {[%clk 0:00:08.4]} 28... Ke4 {[%clk 0:00:02.5]} 29. Re1+
{[%clk 0:00:07.1]} 29... Kd5 {[%clk 0:00:02.6]} 30. Qxe5+ {[%clk 0:00:06.8]}
30... Kc6 {[%clk 0:00:02.8]} 31. Rh7 {[%clk 0:00:05.8]} 31... Kb6 {[%clk
0:00:02.4]} 32. Rb1 {[%clk 0:00:04.5]} 32... Rc5 {[%clk 0:00:01.9]} 33. Qe2
{[%clk 0:00:03.9]} 33... e5 {[%clk 0:00:01.8]} 34. a4 {[%clk 0:00:01.4]} 34...
d3 {[%clk 0:00:01.8]} 35. Qd2 {[%clk 0:00:01.2]} 35... Rc2 {[%clk 0:00:01.3]}
0-1

[Event "Late-Titled-Tuesday-Blitz-August-29-2023"]
[Site "Chess.com"]
[Date "2023.08.29"]
[Round "4"]
[White "FairChess_on_YouTube"]
[Black "GMKrikor"]
[Result "1-0"]
[WhiteElo "3064"]
[BlackElo "2882"]
[TimeControl "180+1"]
[EndTime "14:38:34 PDT"]
[Termination "FairChess_on_YouTube won by checkmate"]

1. d4 {[%clk 0:03:00.9]} 1... Nf6 {[%clk 0:02:59.6]} 2. c4 {[%clk 0:03:00.5]}
2... g6 {[%clk 0:02:59.8]} 3. Nc3 {[%clk 0:02:56.3]} 3... d5 {[%clk 0:02:59.7]}
4. cxd5 {[%clk 0:02:55.4]} 4... Nxd5 {[%clk 0:02:59.7]} 5. Na4 {[%clk
0:02:55.6]} 5... Bf5 {[%clk 0:02:46.2]} 6. f3 {[%clk 0:02:51.5]} 6... Nb6 {[%clk
0:02:43]} 7. e4 {[%clk 0:02:49.7]} 7... Bc8 {[%clk 0:02:38.3]} 8. Be3 {[%clk
0:02:42.2]} 8... Bg7 {[%clk 0:02:37.6]} 9. Nc5 {[%clk 0:02:28.4]} 9... N6d7
{[%clk 0:02:28.2]} 10. Rc1 {[%clk 0:02:22.3]} 10... Nxc5 {[%clk 0:02:28]} 11.
Rxc5 {[%clk 0:02:23.2]} 11... c6 {[%clk 0:02:21.8]} 12. Ne2 {[%clk 0:02:20.5]}
12... O-O {[%clk 0:02:19.6]} 13. Qd2 {[%clk 0:02:20.5]} 13... e5 {[%clk
0:02:17.5]} 14. Rc1 {[%clk 0:02:11.9]} 14... exd4 {[%clk 0:02:17.3]} 15. Bxd4
{[%clk 0:02:09]} 15... Bxd4 {[%clk 0:02:00.9]} 16. Qxd4 {[%clk 0:02:08.2]} 16...
Qxd4 {[%clk 0:01:59.9]} 17. Nxd4 {[%clk 0:02:08]} 17... Rd8 {[%clk 0:02:00.8]}
18. Rd1 {[%clk 0:02:06.6]} 18... Nd7 {[%clk 0:01:51.7]} 19. Bc4 {[%clk 0:02:04]}
19... Nb6 {[%clk 0:01:44]} 20. Bb3 {[%clk 0:01:59]} 20... a5 {[%clk 0:01:43]}
21. a3 {[%clk 0:01:55.5]} 21... Kf8 {[%clk 0:01:37.1]} 22. Ke2 {[%clk
0:01:53.3]} 22... Ke7 {[%clk 0:01:36.6]} 23. Rd2 {[%clk 0:01:49.9]} 23... c5
{[%clk 0:01:29.7]} 24. Nb5 {[%clk 0:01:47]} 24... Rxd2+ {[%clk 0:01:27.4]} 25.
Kxd2 {[%clk 0:01:47.9]} 25... Bd7 {[%clk 0:01:25.2]} 26. Nc3 {[%clk 0:01:47.7]}
26... Rd8 {[%clk 0:01:17.1]} 27. Ke3 {[%clk 0:01:45.5]} 27... Be6 {[%clk
0:01:17.2]} 28. Bxe6 {[%clk 0:01:41.5]} 28... Kxe6 {[%clk 0:01:16.4]} 29. Ke2
{[%clk 0:01:30.3]} 29... Nc4 {[%clk 0:01:10]} 30. Nd5 {[%clk 0:01:30.1]} 30...
Rc8 {[%clk 0:00:33.1]} 31. Rc1 {[%clk 0:01:23.9]} 31... Nxb2 {[%clk 0:00:22.9]}
32. Rb1 {[%clk 0:01:23.5]} 32... Nc4 {[%clk 0:00:23.5]} 33. Rxb7 {[%clk
0:01:20.2]} 33... Nxa3 {[%clk 0:00:23.7]} 34. Kd3 {[%clk 0:01:03.7]} 34... c4+
{[%clk 0:00:16.3]} 35. Kc3 {[%clk 0:01:04.3]} 35... Rc5 {[%clk 0:00:16.6]} 36.
Kd4 {[%clk 0:00:59.5]} 36... Rc8 {[%clk 0:00:11.1]} 37. Kc3 {[%clk 0:00:48.8]}
37... Rc5 {[%clk 0:00:10.4]} 38. g4 {[%clk 0:00:28.7]} 38... h6 {[%clk
0:00:08.2]} 39. h4 {[%clk 0:00:28.2]} 39... f5 {[%clk 0:00:03.3]} 40. Kd4 {[%clk
0:00:26]} 40... Rc8 {[%clk 0:00:02.9]} 41. Re7+ {[%clk 0:00:19.7]} 41... Kd6
{[%clk 0:00:03.3]} 42. e5+ {[%clk 0:00:20.6]} 42... Kc6 {[%clk 0:00:04]} 43.
Re6+ {[%clk 0:00:21.2]} 43... Kb5 {[%clk 0:00:03.2]} 44. Rb6+ {[%clk 0:00:19.8]}
44... Ka4 {[%clk 0:00:01.5]} 45. Nc3# {[%clk 0:00:20.7]} 1-0

[Event "Late-Titled-Tuesday-Blitz-August-29-2023"]
[Site "Chess.com"]
[Date "2023.08.29"]
[Round "4"]
[White "Zavgorodniy_Sergiy"]
[Black "I_am_Javi"]
[Result "0-1"]
[WhiteElo "2536"]
[BlackElo "2737"]
[TimeControl "180+1"]
[EndTime "14:38:38 PDT"]
[Termination "I_am_Javi won by checkmate"]

1. d4 {[%clk 0:02:59.2]} 1... Nf6 {[%clk 0:02:59.6]} 2. c4 {[%clk 0:02:58.9]}
2... g6 {[%clk 0:02:41.3]} 3. Nc3 {[%clk 0:02:57.8]} 3... Bg7 {[%clk 0:02:40.8]}
4. e4 {[%clk 0:02:57.7]} 4... d6 {[%clk 0:02:41.4]} 5. Be2 {[%clk 0:02:57.7]}
5... O-O {[%clk 0:02:42.3]} 6. Nf3 {[%clk 0:02:57.7]} 6... e5 {[%clk 0:02:43]}
7. O-O {[%clk 0:02:56.8]} 7... Nc6 {[%clk 0:02:42.9]} 8. d5 {[%clk 0:02:56.7]}
8... Ne7 {[%clk 0:02:43.6]} 9. Ne1 {[%clk 0:02:56.7]} 9... Ne8 {[%clk
0:02:44.4]} 10. Be3 {[%clk 0:02:56.4]} 10... f5 {[%clk 0:02:45.3]} 11. f3 {[%clk
0:02:56.4]} 11... f4 {[%clk 0:02:45.4]} 12. Bf2 {[%clk 0:02:56.5]} 12... g5
{[%clk 0:02:46.3]} 13. c5 {[%clk 0:02:56.3]} 13... Ng6 {[%clk 0:02:47.2]} 14. a4
{[%clk 0:02:55.7]} 14... Rf7 {[%clk 0:02:47.2]} 15. a5 {[%clk 0:02:55.5]} 15...
Bf8 {[%clk 0:02:47.9]} 16. cxd6 {[%clk 0:02:49.8]} 16... cxd6 {[%clk 0:02:47.8]}
17. b4 {[%clk 0:02:47.2]} 17... h5 {[%clk 0:02:47.3]} 18. Rc1 {[%clk 0:02:45.3]}
18... Rg7 {[%clk 0:02:43.4]} 19. Nb5 {[%clk 0:02:39.2]} 19... Bd7 {[%clk
0:02:42.1]} 20. Nxa7 {[%clk 0:02:36]} 20... Nf6 {[%clk 0:02:19.1]} 21. Bb6
{[%clk 0:02:33.2]} 21... Qe8 {[%clk 0:02:16.5]} 22. Rc7 {[%clk 0:02:29.2]} 22...
g4 {[%clk 0:02:15.3]} 23. Rxb7 {[%clk 0:02:24.5]} 23... Nh4 {[%clk 0:02:07.5]}
24. Kh1 {[%clk 0:02:23.3]} 24... Qg6 {[%clk 0:01:59.2]} 25. Rg1 {[%clk
0:02:12.4]} 25... g3 {[%clk 0:01:52.9]} 26. h3 {[%clk 0:01:49.6]} 26... Nh7
{[%clk 0:00:40.2]} 27. Bf1 {[%clk 0:01:39.2]} 27... Ng5 {[%clk 0:00:39.4]} 28.
Nc6 {[%clk 0:01:36.7]} 28... Kh8 {[%clk 0:00:36.4]} 29. a6 {[%clk 0:01:34]}
29... Bxh3 {[%clk 0:00:10.2]} 30. Rxg7 {[%clk 0:01:31.7]} 30... Qxg7 {[%clk
0:00:11.1]} 31. gxh3 {[%clk 0:01:28.4]} 31... Qd7 {[%clk 0:00:10]} 32. a7 {[%clk
0:01:09.4]} 32... Nxh3 {[%clk 0:00:09]} 33. Nb8 {[%clk 0:01:09.6]} 33... Qc8
{[%clk 0:00:07.9]} 34. Qc2 {[%clk 0:01:07.5]} 34... Qxc2 {[%clk 0:00:07.4]} 35.
Nxc2 {[%clk 0:01:07.7]} 35... Nxg1 {[%clk 0:00:08.2]} 36. Bxg1 {[%clk 0:01:03]}
36... Nxf3 {[%clk 0:00:08.1]} 37. b5 {[%clk 0:01:02.6]} 37... Nd2 {[%clk
0:00:07.6]} 38. b6 {[%clk 0:00:45.8]} 38... f3 {[%clk 0:00:06.5]} 39. b7 {[%clk
0:00:34.7]} 39... Nxf1 {[%clk 0:00:05.9]} 40. Ne1 {[%clk 0:00:34.2]} 40... f2
{[%clk 0:00:03]} 41. Bxf2 {[%clk 0:00:16.9]} 41... gxf2 {[%clk 0:00:03.9]} 42.
bxa8=Q {[%clk 0:00:13]} 42... fxe1=Q {[%clk 0:00:04.8]} 43. Nd7 {[%clk
0:00:10.5]} 43... Ne3+ {[%clk 0:00:05.4]} 44. Kh2 {[%clk 0:00:10.2]} 44... Qh4+
{[%clk 0:00:05.8]} 45. Kg1 {[%clk 0:00:10.2]} 45... Qg3+ {[%clk 0:00:06.6]} 46.
Kh1 {[%clk 0:00:10.3]} 46... Qg2# {[%clk 0:00:07.5]} 0-1

[Event "Late-Titled-Tuesday-Blitz-August-29-2023"]
[Site "Chess.com"]
[Date "2023.08.29"]
[Round "4"]
[White "CrushingKings"]
[Black "KNVB"]
[Result "1-0"]
[WhiteElo "2572"]
[BlackElo "2810"]
[TimeControl "180+1"]
[EndTime "14:38:39 PDT"]
[Termination "CrushingKings won on time"]

1. Nf3 {[%clk 0:02:45.5]} 1... d5 {[%clk 0:02:58.7]} 2. g3 {[%clk 0:02:45.9]}
2... c6 {[%clk 0:02:59.6]} 3. Bg2 {[%clk 0:02:46.1]} 3... Nf6 {[%clk 0:03:00.5]}
4. O-O {[%clk 0:02:46.1]} 4... Bf5 {[%clk 0:03:00.9]} 5. d3 {[%clk 0:02:46.4]}
5... h6 {[%clk 0:03:01.4]} 6. c4 {[%clk 0:02:43.1]} 6... dxc4 {[%clk 0:03:00.7]}
7. Ne5 {[%clk 0:02:39.1]} 7... Nbd7 {[%clk 0:02:23.6]} 8. Nxc4 {[%clk
0:02:35.7]} 8... e6 {[%clk 0:02:22.6]} 9. Nc3 {[%clk 0:02:23.3]} 9... Be7 {[%clk
0:02:22.4]} 10. e4 {[%clk 0:02:23.5]} 10... Bh7 {[%clk 0:02:22.7]} 11. Qb3
{[%clk 0:02:03.8]} 11... Nc5 {[%clk 0:02:21.9]} 12. Qd1 {[%clk 0:01:47.7]} 12...
Qxd3 {[%clk 0:02:21]} 13. Qxd3 {[%clk 0:01:35.5]} 13... Nxd3 {[%clk 0:02:21.9]}
14. Be3 {[%clk 0:01:35.6]} 14... Ng4 {[%clk 0:01:27.7]} 15. Rad1 {[%clk
0:01:17.3]} 15... Nxe3 {[%clk 0:01:25.6]} 16. fxe3 {[%clk 0:01:17.8]} 16... Nc5
{[%clk 0:00:26.4]} 17. b4 {[%clk 0:01:17.5]} 17... Nd7 {[%clk 0:00:21.4]} 18.
Rxf7 {[%clk 0:00:43.1]} 18... Kxf7 {[%clk 0:00:18.9]} 19. Rxd7 {[%clk
0:00:43.8]} 19... Rhd8 {[%clk 0:00:14.4]} 20. Rxb7 {[%clk 0:00:42.2]} 20... Rdb8
{[%clk 0:00:04.9]} 21. Ne5+ {[%clk 0:00:40.4]} 21... Ke8 {[%clk 0:00:05.6]} 22.
Rxe7+ {[%clk 0:00:33.7]} 22... Kxe7 {[%clk 0:00:05.9]} 23. Nxc6+ {[%clk
0:00:34.6]} 23... Kd7 {[%clk 0:00:04.9]} 24. Nxb8+ {[%clk 0:00:31.4]} 24... Rxb8
{[%clk 0:00:05.8]} 25. a3 {[%clk 0:00:21.7]} 25... Rc8 {[%clk 0:00:06.2]} 26.
Na4 {[%clk 0:00:21.4]} 26... Rc1+ {[%clk 0:00:04]} 27. Kf2 {[%clk 0:00:21.7]}
27... Ra1 {[%clk 0:00:04]} 28. Nc5+ {[%clk 0:00:21.6]} 28... Kd6 {[%clk
0:00:02.6]} 29. a4 {[%clk 0:00:20.7]} 29... Ra2+ {[%clk 0:00:02.5]} 30. Kf3
{[%clk 0:00:20.1]} 30... e5 {[%clk 0:00:02.5]} 31. Bf1 {[%clk 0:00:19.4]} 31...
Rb2 {[%clk 0:00:02]} 32. Na6 {[%clk 0:00:14.9]} 32... Rb1 {[%clk 0:00:02]} 33.
Bc4 {[%clk 0:00:13.8]} 33... Bg6 {[%clk 0:00:01.9]} 34. Bd5 {[%clk 0:00:10.8]}
34... Be8 {[%clk 0:00:01.8]} 35. b5 {[%clk 0:00:10.3]} 35... Ra1 {[%clk
0:00:01.8]} 36. Bb3 {[%clk 0:00:08.5]} 36... Ra3 {[%clk 0:00:01.9]} 37. Bc2
{[%clk 0:00:08.7]} 37... Bd7 {[%clk 0:00:01.9]} 38. Nb4 {[%clk 0:00:08.4]} 38...
Rc3 {[%clk 0:00:01.7]} 39. Bd1 {[%clk 0:00:08.5]} 39... Be6 {[%clk 0:00:01.8]}
40. Nc6 {[%clk 0:00:08.4]} 40... a6 {[%clk 0:00:02.4]} 41. Na7 {[%clk
0:00:07.4]} 41... a5 {[%clk 0:00:02.6]} 42. b6 {[%clk 0:00:07.4]} 42... Rc1
{[%clk 0:00:02.5]} 43. Be2 {[%clk 0:00:07.7]} 43... Rb1 {[%clk 0:00:02.6]} 44.
Bb5 {[%clk 0:00:07.9]} 44... Bf7 {[%clk 0:00:01.1]} 45. Nc6 {[%clk 0:00:07.8]}
1-0